[Event "FIDE World Rapid-ch Open 2018"]
[White "Akopian, Vladimir"]
[Black "Piorun, Kacper"]
[Site "St. Petersburg"]
[Round "9.22"]
[Annotator "ChessBase"]
[Result "1-0"]
[Date "2018.12.27"]
[WhiteElo "2650"]
[BlackElo "2634"]
[PlyCount "67"]
[TimeControl "900+10"]

1. Nf3 {[%emt 0:0:49]} d5 {[%emt 0:0:5]} 2. g3 {[%emt 0:0:4]} Nf6 {[%emt 0:0:12]
} 3. Bg2 {[%emt 0:0:3]} e6 {[%emt 0:0:53]} 4. 0-0 {[%emt 0:0:0]} Be7 {[%emt 0:0:10]} 5. c4 {[%emt 0:0:19]} 0-0 {[%emt 0:0:8]} 6. b3 {[%emt 0:0:4]
} d4 {[%emt 0:1:18]} 7. Bb2 {[%emt 0:0:51]} c5 {[%emt 0:0:21]} 8. e3 {[%emt 0:0:7]} Nc6 {[%emt 0:0:1]} 9. exd4 {[%emt 0:0:2]} cxd4 {[%emt 0:0:1]
} 10. Re1 {[%emt 0:0:10]} Ne8 {[%emt 0:0:36]} 11. a3 {[%emt 0:0:0]} a5 {[%emt 0:0:2]} 12. d3 {[%emt 0:0:3]} f6 {[%emt 0:0:7]} 13. Nh4 {[%emt 0:1:20]} g5 {[%emt 0:1:29]} 14. Nf3 {[%emt 0:0:15]} e5 {[%emt 0:0:0]} 15. h4 {[%emt 0:0:26]} g4 {[%emt 0:0:45]} 16. Nh2 {[%emt 0:0:3]} f5 {[%emt 0:0:37]
} 17. Nd2 {[%emt 0:2:19]} Bf6 {[%emt 0:0:13]} 18. c5 {[%emt 0:0:0]} Be6 {[%emt 0:1:20]} 19. Nc4 {[%emt 0:0:6]} Nc7 {[%emt 0:0:22]} 20. Bxc6 {[%emt 0:1:53]} Bxc4 {[%emt 0:0:42]} 21. Bxb7 {[%emt 0:0:7]} Rb8 {[%emt 0:0:1]
} 22. bxc4 {[%emt 0:2:14]} Rxb7 {[%emt 0:0:2]} 23. Bc1 {[%emt 0:0:1]
} Ne6 {[%emt 0:1:51]} 24. c6 {[%emt 0:0:3]} Rb6 {[%emt 0:0:0]} 25. Bh6 {[%emt 0:0:41]} Re8 {[%emt 0:1:37]} 26. f3 {[%emt 0:1:45]} Bxh4 {[%emt 0:0:57]} 27. gxh4 {[%emt 0:0:10]} Qxh4 {[%emt 0:0:1]} 28. Qd2 {[%emt 0:0:44]
} g3 {[%emt 0:2:51]} 29. Rxe5 {[%emt 0:0:4]} gxh2+ {[%emt 0:0:0]} 30. Qxh2 {[%emt 0:0:47]} Qf6 {[%emt 0:0:1]} 31. Kh1 {[%emt 0:0:27]} Ng7 {[%emt 0:1:6]} 32. Bxg7 {[%emt 0:0:16]} Qxc6 {[%emt 0:0:7]} 33. Rxe8+ {[%emt 0:0:10]} Qxe8 {[%emt 0:0:0]} 34. Rg1 {[%emt 0:0:25]} 1-0

[Event "FIDE World Rapid-ch Open 2018"]
[White "Cheparinov, Ivan"]
[Black "Yuffa, Daniil"]
[Site "St. Petersburg"]
[Round "9.23"]
[Annotator "ChessBase"]
[Result "1-0"]
[Date "2018.12.27"]
[WhiteElo "2709"]
[BlackElo "2572"]
[PlyCount "143"]
[TimeControl "900+10"]

1. Nf3 {[%emt 0:0:0]} Nf6 {[%emt 0:0:0]} 2. c4 {[%emt 0:0:0]} g6 {[%emt 0:0:0]
} 3. Nc3 {[%emt 0:0:0]} Bg7 {[%emt 0:0:1]} 4. e4 {[%emt 0:0:0]} d6 {[%emt 0:0:2]} 5. d4 {[%emt 0:0:0]} 0-0 {[%emt 0:0:2]} 6. Be2 {[%emt 0:0:1]
} e5 {[%emt 0:0:2]} 7. 0-0 {[%emt 0:0:2]} Nc6 {[%emt 0:0:1]
} 8. dxe5 {[%emt 0:0:11]} dxe5 {[%emt 0:0:32]} 9. Bg5 {[%emt 0:0:3]} Qxd1 {[%emt 0:0:49]
} 10. Rfxd1 {[%emt 0:0:2]} Bg4 {[%emt 0:0:21]} 11. h3 {[%emt 0:0:12]
} Bxf3 {[%emt 0:0:11]} 12. Bxf3 {[%emt 0:0:2]} Nd4 {[%emt 0:0:0]} 13. Nd5 {[%emt 0:0:1]} Nxd5 {[%emt 0:0:48]} 14. cxd5 {[%emt 0:0:2]
} c6 {[%emt 0:0:56]} 15. Rac1 {[%emt 0:0:23]} cxd5 {[%emt 0:0:29]} 16. exd5 {[%emt 0:0:2]} e4 {[%emt 0:0:48]} 17. Be3 {[%emt 0:1:22]} Nf5 {[%emt 0:0:0]} 18. Bxe4 {[%emt 0:0:4]} Nxe3 {[%emt 0:0:27]} 19. fxe3 {[%emt 0:0:1]} Rfe8 {[%emt 0:1:47]} 20. Bf3 {[%emt 0:0:40]} Bxb2 {[%emt 0:0:20]} 21. Rb1 {[%emt 0:0:22]
} Ba3 {[%emt 0:0:17]} 22. d6 {[%emt 0:0:20]} Rad8 {[%emt 0:0:0]} 23. d7 {[%emt 0:0:33]} Rxe3 {[%emt 0:0:6]} 24. Bxb7 {[%emt 0:1:10]} Bc5 {[%emt 0:0:34]} 25. Kf1 {[%emt 0:0:23]} Bb6 {[%emt 0:0:47]} 26. Rb3 {[%emt 0:0:40]
} Re6 {[%emt 0:0:30]} 27. Bc8 {[%emt 0:0:25]} Kf8 {[%emt 0:0:0]} 28. Rd5 {[%emt 0:0:1]} Re4 {[%emt 0:0:49]} 29. Rd2 {[%emt 0:0:26]} Ke7 {[%emt 0:0:24]} 30. Re2 {[%emt 0:0:1]} Re6 {[%emt 0:0:40]} 31. a4 {[%emt 0:0:0]} Rf8 {[%emt 0:0:23]} 32. Rb5 {[%emt 0:0:9]} Kd8 {[%emt 0:1:15]} 33. a5 {[%emt 0:0:5]} Bd4 {[%emt 0:0:30]} 34. Rc2 {[%emt 0:1:55]} Rf6+ {[%emt 0:0:8]
} 35. Ke1 {[%emt 0:0:6]} Re6+ {[%emt 0:0:1]} 36. Kd1 {[%emt 0:0:17]
} Rd6 {[%emt 0:0:9]} 37. Kc1 {[%emt 0:1:33]} f5 {[%emt 0:0:0]} 38. Rb8 {[%emt 0:1:9]} Ke7 {[%emt 0:0:1]} 39. Re2+ {[%emt 0:0:18]} Kf7 {[%emt 0:0:3]} 40. Rb7 {[%emt 0:0:27]} Rd8 {[%emt 0:0:2]} 41. Rc7 {[%emt 0:0:14]
} Rd5 {[%emt 0:0:27]} 42. a6 {[%emt 0:0:1]} Bb6 {[%emt 0:0:0]} 43. Rc6 {[%emt 0:0:9]} f4 {[%emt 0:0:22]} 44. Rxb6 {[%emt 0:0:11]} axb6 {[%emt 0:0:1]} 45. Ra2 {[%emt 0:0:1]} Rc5+ {[%emt 0:0:2]} 46. Rc2 {[%emt 0:1:20]
} Ra5 {[%emt 0:0:1]} 47. Kb1 {[%emt 0:0:1]} Rxa6 {[%emt 0:0:0]} 48. Bxa6 {[%emt 0:0:2]} Rxd7 {[%emt 0:0:1]} 49. Rc4 {[%emt 0:0:54]} g5 {[%emt 0:0:9]} 50. Kc2 {[%emt 0:0:1]} Kf6 {[%emt 0:0:21]} 51. Rc6+ {[%emt 0:0:12]
} Ke5 {[%emt 0:0:1]} 52. Rxb6 {[%emt 0:0:11]} Ke4 {[%emt 0:0:0]} 53. Re6+ {[%emt 0:0:9]} Kf5 {[%emt 0:0:4]} 54. Re8 {[%emt 0:0:25]} Kg6 {[%emt 0:0:17]} 55. Be2 {[%emt 0:0:24]} Rc7+ {[%emt 0:0:14]} 56. Kd2 {[%emt 0:0:3]
} Rd7+ {[%emt 0:0:1]} 57. Ke1 {[%emt 0:0:4]} Rc7 {[%emt 0:0:0]} 58. Re6+ {[%emt 0:0:9]} Kg7 {[%emt 0:0:2]} 59. Bd3 {[%emt 0:0:12]} Rd7 {[%emt 0:0:9]} 60. Ke2 {[%emt 0:0:3]} Ra7 {[%emt 0:0:1]} 61. Rd6 {[%emt 0:0:23]
} Re7+ {[%emt 0:0:3]} 62. Kf2 {[%emt 0:0:8]} Re3 {[%emt 0:0:0]} 63. Rd7+ {[%emt 0:0:8]} Kf6 {[%emt 0:0:5]} 64. Bxh7 {[%emt 0:0:4]} Ra3 {[%emt 0:0:8]} 65. Bd3 {[%emt 0:0:8]} Ra5 {[%emt 0:0:19]} 66. Be2 {[%emt 0:0:3]
} Ra3 {[%emt 0:0:6]} 67. Rd3 {[%emt 0:0:6]} Ra5 {[%emt 0:0:0]} 68. Bg4 {[%emt 0:0:13]} Ke5 {[%emt 0:0:4]} 69. Rb3 {[%emt 0:0:9]} Rd5 {[%emt 0:0:5]} 70. Be2 {[%emt 0:0:1]} Kf6 {[%emt 0:0:6]} 71. Rb6+ {[%emt 0:0:1]
} Kg7 {[%emt 0:0:4]} 72. Rb5 {[%emt 0:0:1]} 1-0

[Event "FIDE World Rapid-ch Open 2018"]
[White "Amonatov, Farrukh"]
[Black "Sakaev, Konstantin"]
[Site "St. Petersburg"]
[Round "9.24"]
[Annotator "ChessBase"]
[Result "1-0"]
[Date "2018.12.27"]
[WhiteElo "2614"]
[BlackElo "2584"]
[PlyCount "81"]
[TimeControl "900+10"]

1. e4 {[%emt 0:0:0]} c5 {[%emt 0:0:0]} 2. Nf3 {[%emt 0:0:1]} d6 {[%emt 0:0:0]} 3. d4 {[%emt 0:0:2]} cxd4 {[%emt 0:0:0]} 4. Nxd4 {[%emt 0:0:2]} Nf6 {[%emt 0:0:0]} 5. Nc3 {[%emt 0:0:1]} a6 {[%emt 0:0:0]} 6. f4 {[%emt 0:0:1]
} Qc7 {[%emt 0:0:7]} 7. Bd3 {[%emt 0:0:9]} g6 {[%emt 0:0:19]
} 8. Nf3 {[%emt 0:0:5]} Nbd7 {[%emt 0:1:13]} 9. 0-0 {[%emt 0:0:4]} Bg7 {[%emt 0:0:5]
} 10. Kh1 {[%emt 0:0:2]} 0-0 {[%emt 0:0:33]} 11. Qe1 {[%emt 0:0:0]} Nc5 {[%emt 0:1:34]} 12. Qh4 {[%emt 0:0:24]} e6 {[%emt 0:1:52]} 13. Be3 {[%emt 0:0:5]} Nxd3 {[%emt 0:1:42]} 14. cxd3 {[%emt 0:0:4]} Qd8 {[%emt 0:0:2]
} 15. f5 {[%emt 0:3:45]} exf5 {[%emt 0:1:28]} 16. Bg5 {[%emt 0:0:0]} h6 {[%emt 0:0:7]} 17. Bxh6 {[%emt 0:0:2]} Ng4 {[%emt 0:2:35]} 18. Bg5 {[%emt 0:2:35]} f6 {[%emt 0:0:6]} 19. Bd2 {[%emt 0:0:4]} g5 {[%emt 0:0:0]} 20. Qe1 {[%emt 0:2:50]} f4 {[%emt 0:0:27]} 21. Nd5 {[%emt 0:0:1]} b6 {[%emt 0:2:29]} 22. Rc1 {[%emt 0:2:24]} Rf7 {[%emt 0:0:2]} 23. Nd4 {[%emt 0:0:17]
} Ne5 {[%emt 0:0:6]} 24. Rc3 {[%emt 0:0:39]} Bd7 {[%emt 0:0:0]} 25. Nf5 {[%emt 0:0:32]} Bf8 {[%emt 0:0:37]} 26. d4 {[%emt 0:0:36]} Nc6 {[%emt 0:0:28]} 27. Qe2 {[%emt 0:0:59]} Bxf5 {[%emt 0:0:33]} 28. exf5 {[%emt 0:0:10]
} Ne7 {[%emt 0:0:55]} 29. Qe6 {[%emt 0:1:28]} Nxd5 {[%emt 0:0:0]} 30. Qxd5 {[%emt 0:0:1]} Rc8 {[%emt 0:0:3]} 31. Re1 {[%emt 0:0:16]} Rxc3 {[%emt 0:0:7]} 32. bxc3 {[%emt 0:0:5]} Kg7 {[%emt 0:0:14]} 33. Re6 {[%emt 0:0:27]
} Qc8 {[%emt 0:0:37]} 34. h4 {[%emt 0:0:28]} gxh4 {[%emt 0:0:0]} 35. Qf3 {[%emt 0:0:46]} Qc4 {[%emt 0:0:4]} 36. Bxf4 {[%emt 0:0:33]} Kg8 {[%emt 0:0:4]} 37. Re8 {[%emt 0:0:8]} Qb5 {[%emt 0:0:18]} 38. Qg4+ {[%emt 0:0:6]
} Rg7 {[%emt 0:0:5]} 39. Rxf8+ {[%emt 0:0:3]} Kxf8 {[%emt 0:0:0]} 40. Bh6 {[%emt 0:0:2]} Qd7 {[%emt 0:0:19]} 41. Kh2 {[%emt 0:0:8]} 1-0

[Event "FIDE World Rapid-ch Open 2018"]
[White "Grachev, Boris"]
[Black "Bocharov, Dmitry"]
[Site "St. Petersburg"]
[Round "9.25"]
[Annotator "ChessBase"]
[Result "1/2-1/2"]
[Date "2018.12.27"]
[WhiteElo "2626"]
[BlackElo "2533"]
[PlyCount "32"]
[TimeControl "900+10"]

1. Nf3 {[%emt 0:0:0]} c5 {[%emt 0:0:0]} 2. c4 {[%emt 0:0:0]} Nc6 {[%emt 0:0:3]
} 3. Nc3 {[%emt 0:0:2]} Nf6 {[%emt 0:0:41]} 4. e3 {[%emt 0:0:0]} e5 {[%emt 0:1:7]} 5. d4 {[%emt 0:0:13]} e4 {[%emt 0:0:36]} 6. Ne5 {[%emt 0:0:20]
} g6 {[%emt 0:0:14]} 7. Be2 {[%emt 0:1:9]} Bg7 {[%emt 0:1:39]
} 8. 0-0 {[%emt 0:2:42]} Qe7 {[%emt 0:0:38]} 9. b3 {[%emt 0:1:37]} Nxe5 {[%emt 0:3:29]
} 10. dxe5 {[%emt 0:0:2]} Qxe5 {[%emt 0:0:1]} 11. Bb2 {[%emt 0:0:34]
} 0-0 {[%emt 0:0:17]} 12. Qd2 {[%emt 0:0:13]} Qg5 {[%emt 0:0:0]} 13. Qd6 {[%emt 0:1:44]} Ne8 {[%emt 0:0:27]} 14. Qd2 {[%emt 0:0:3]} Nf6 {[%emt 0:0:12]} 15. Qd6 {[%emt 0:0:46]} Ne8 {[%emt 0:1:14]} 16. Qd2 {[%emt 0:0:27]
} Nf6 {[%emt 0:0:24]} 1/2-1/2

[Event "FIDE World Rapid-ch Open 2018"]
[White "Zubov, Alexander"]
[Black "Hovhannisyan, Robert"]
[Site "St. Petersburg"]
[Round "9.26"]
[Annotator "ChessBase"]
[Result "1-0"]
[Date "2018.12.27"]
[WhiteElo "2597"]
[BlackElo "2637"]
[PlyCount "93"]
[TimeControl "900+10"]

1. d4 {[%emt 0:0:0]} d5 {[%emt 0:0:0]} 2. c4 {[%emt 0:0:0]} c6 {[%emt 0:0:0]} 3. Nf3 {[%emt 0:0:1]} Nf6 {[%emt 0:0:0]} 4. Qb3 {[%emt 0:0:3]} dxc4 {[%emt 0:0:0]} 5. Qxc4 {[%emt 0:0:1]} Bg4 {[%emt 0:0:1]} 6. Nbd2 {[%emt 0:0:2]
} Nbd7 {[%emt 0:0:2]} 7. g3 {[%emt 0:0:4]} e6 {[%emt 0:0:1]
} 8. Bg2 {[%emt 0:0:4]} Be7 {[%emt 0:0:3]} 9. Qb3 {[%emt 0:0:12]} Qb6 {[%emt 0:0:13]
} 10. Nc4 {[%emt 0:0:3]} Qa6 {[%emt 0:0:9]} 11. a4 {[%emt 0:0:0]} 0-0 {[%emt 0:0:55]} 12. 0-0 {[%emt 0:0:36]} Nb6 {[%emt 0:1:38]} 13. Nce5 {[%emt 0:1:18]} Bh5 {[%emt 0:1:24]} 14. Re1 {[%emt 0:0:49]} Nbd7 {[%emt 0:0:14]
} 15. Bg5 {[%emt 0:1:9]} Nxe5 {[%emt 0:0:51]} 16. dxe5 {[%emt 0:1:29]
} Nd5 {[%emt 0:0:4]} 17. Bxe7 {[%emt 0:0:4]} Nxe7 {[%emt 0:0:0]} 18. Nd4 {[%emt 0:0:4]} Qb6 {[%emt 0:0:51]} 19. e3 {[%emt 0:2:4]} Qxb3 {[%emt 0:2:25]} 20. Nxb3 {[%emt 0:0:1]} Rfd8 {[%emt 0:0:2]} 21. a5 {[%emt 0:0:15]
} Bg6 {[%emt 0:1:3]} 22. Rec1 {[%emt 0:0:20]} Rab8 {[%emt 0:0:0]} 23. g4 {[%emt 0:1:44]} Bd3 {[%emt 0:0:51]} 24. f4 {[%emt 0:0:45]} h5 {[%emt 0:0:43]} 25. Kf2 {[%emt 0:0:13]} g5 {[%emt 0:0:21]} 26. Nc5 {[%emt 0:0:0]} b6 {[%emt 0:1:0]} 27. axb6 {[%emt 0:0:49]} axb6 {[%emt 0:0:1]} 28. Nxd3 {[%emt 0:1:10]} Rxd3 {[%emt 0:0:2]} 29. Rc2 {[%emt 0:0:36]} Rbd8 {[%emt 0:0:39]
} 30. Ra7 {[%emt 0:0:37]} Kf8 {[%emt 0:3:2]} 31. Be4 {[%emt 0:0:0]} Rd2+ {[%emt 0:0:11]} 32. Rxd2 {[%emt 0:0:2]} Rxd2+ {[%emt 0:0:2]} 33. Kg3 {[%emt 0:0:1]} Re2 {[%emt 0:1:36]} 34. Kf3 {[%emt 0:0:10]} Rxh2 {[%emt 0:0:13]
} 35. f5 {[%emt 0:0:10]} exf5 {[%emt 0:0:1]} 36. gxf5 {[%emt 0:0:2]
} Nd5 {[%emt 0:0:25]} 37. f6 {[%emt 0:0:38]} Ke8 {[%emt 0:0:0]} 38. Bf5 {[%emt 0:0:15]} Kd8 {[%emt 0:0:6]} 39. Rxf7 {[%emt 0:0:6]} g4+ {[%emt 0:0:33]} 40. Bxg4 {[%emt 0:0:4]} Rh1 {[%emt 0:0:9]} 41. Kf2 {[%emt 0:0:18]
} Rh2+ {[%emt 0:0:13]} 42. Kg3 {[%emt 0:0:2]} Rh1 {[%emt 0:0:0]} 43. Rd7+ {[%emt 0:0:6]} Ke8 {[%emt 0:0:2]} 44. f7+ {[%emt 0:0:2]} Kf8 {[%emt 0:0:1]} 45. e6 {[%emt 0:0:3]} Rf1 {[%emt 0:0:26]} 46. Rd8+ {[%emt 0:0:8]
} Ke7 {[%emt 0:0:7]} 47. Re8+ {[%emt 0:0:2]} 1-0

[Event "FIDE World Rapid-ch Open 2018"]
[White "Tari, Aryan"]
[Black "Fridman, Daniel"]
[Site "St. Petersburg"]
[Round "9.27"]
[Annotator "ChessBase"]
[Result "1/2-1/2"]
[Date "2018.12.27"]
[WhiteElo "2620"]
[BlackElo "2633"]
[PlyCount "84"]
[TimeControl "900+10"]

1. e4 {[%emt 0:0:0]} e5 {[%emt 0:0:0]} 2. Nf3 {[%emt 0:0:0]} Nf6 {[%emt 0:0:0]
} 3. Nxe5 {[%emt 0:0:12]} d6 {[%emt 0:0:0]} 4. Nf3 {[%emt 0:0:0]} Nxe4 {[%emt 0:0:0]} 5. d4 {[%emt 0:0:8]} d5 {[%emt 0:0:0]} 6. Bd3 {[%emt 0:0:1]} Nc6 {[%emt 0:0:1]} 7. 0-0 {[%emt 0:0:8]} Bg4 {[%emt 0:0:0]} 8. c4 {[%emt 0:0:52]} Nf6 {[%emt 0:0:2]} 9. cxd5 {[%emt 0:1:17]} Bxf3 {[%emt 0:0:10]} 10. Qxf3 {[%emt 0:0:59]} Qxd5 {[%emt 0:0:2]} 11. Qxd5 {[%emt 0:0:31]
} Nxd5 {[%emt 0:0:1]} 12. Nc3 {[%emt 0:0:1]} 0-0-0 {[%emt 0:0:0]} 13. Be4 {[%emt 0:0:7]} Nce7 {[%emt 0:2:50]} 14. Rd1 {[%emt 0:0:17]} g6 {[%emt 0:0:32]} 15. Bg5 {[%emt 0:0:31]} f6 {[%emt 0:0:2]} 16. Nxd5 {[%emt 0:1:21]
} fxg5 {[%emt 0:0:32]} 17. Nxe7+ {[%emt 0:0:38]} Bxe7 {[%emt 0:0:0]} 18. Rd2 {[%emt 0:0:6]} Rhe8 {[%emt 0:0:34]} 19. Rad1 {[%emt 0:0:38]
} g4 {[%emt 0:2:28]} 20. f3 {[%emt 0:0:3]} Bb4 {[%emt 0:1:6]} 21. Rd3 {[%emt 0:0:11]
} Ba5 {[%emt 0:0:6]} 22. Kf1 {[%emt 0:0:36]} Rd6 {[%emt 0:0:0]} 23. Re3 {[%emt 0:1:9]} Kb8 {[%emt 0:0:54]} 24. Re2 {[%emt 0:0:39]} Rf8 {[%emt 0:0:31]} 25. Rd3 {[%emt 0:0:26]} Bb6 {[%emt 0:0:45]} 26. d5 {[%emt 0:0:0]} h5 {[%emt 0:0:56]} 27. g3 {[%emt 0:0:6]} g5 {[%emt 0:0:45]} 28. Kg2 {[%emt 0:0:9]} Rdf6 {[%emt 0:0:3]} 29. Rc2 {[%emt 0:0:50]} a5 {[%emt 0:0:0]} 30. b3 {[%emt 0:0:45]} Re8 {[%emt 0:0:40]} 31. Re2 {[%emt 0:0:40]} Ka7 {[%emt 0:0:55]} 32. h3 {[%emt 0:1:31]} gxh3+ {[%emt 0:0:11]} 33. Kxh3 {[%emt 0:0:1]
} Re5 {[%emt 0:0:8]} 34. Kg2 {[%emt 0:0:26]} Bc5 {[%emt 0:0:0]} 35. Rdd2 {[%emt 0:0:12]} Bb4 {[%emt 0:0:36]} 36. Bc2 {[%emt 0:0:18]} Rxe2+ {[%emt 0:1:15]} 37. Rxe2 {[%emt 0:0:1]} h4 {[%emt 0:0:13]} 38. Re6 {[%emt 0:0:21]
} Rf7 {[%emt 0:0:22]} 39. Bg6 {[%emt 0:0:17]} Rd7 {[%emt 0:0:0]} 40. Be4 {[%emt 0:0:10]} hxg3 {[%emt 0:0:23]} 41. Kxg3 {[%emt 0:0:6]} Bd6+ {[%emt 0:0:3]} 42. Kg4 {[%emt 0:0:9]} Bf4 {[%emt 0:0:2]} 1/2-1/2

[Event "FIDE World Rapid-ch Open 2018"]
[White "Vokhidov, Shamsiddin"]
[Black "Sargissian, Gabriel"]
[Site "St. Petersburg"]
[Round "9.28"]
[Annotator "ChessBase"]
[Result "0-1"]
[Date "2018.12.27"]
[WhiteElo "2480"]
[BlackElo "2689"]
[PlyCount "116"]
[TimeControl "900+10"]

1. e4 {[%emt 0:0:0]} e5 {[%emt 0:0:0]} 2. Nf3 {[%emt 0:0:0]} Nc6 {[%emt 0:0:0]
} 3. Bc4 {[%emt 0:0:10]} Bc5 {[%emt 0:0:0]} 4. d3 {[%emt 0:0:0]} Nf6 {[%emt 0:0:0]} 5. 0-0 {[%emt 0:0:2]} d6 {[%emt 0:0:0]} 6. c3 {[%emt 0:0:6]
} a6 {[%emt 0:0:2]} 7. a4 {[%emt 0:0:4]} Ba7 {[%emt 0:0:3]} 8. Nbd2 {[%emt 0:0:12]} 0-0 {[%emt 0:0:11]} 9. h3 {[%emt 0:0:2]} Kh8 {[%emt 0:1:3]
} 10. Re1 {[%emt 0:0:35]} Ng8 {[%emt 0:0:2]} 11. Nf1 {[%emt 0:0:0]} f5 {[%emt 0:0:6]} 12. exf5 {[%emt 0:0:32]} Bxf5 {[%emt 0:0:2]} 13. Ng3 {[%emt 0:0:1]} Bg6 {[%emt 0:0:53]} 14. Bd5 {[%emt 0:2:3]} Nf6 {[%emt 0:0:10]
} 15. Bxc6 {[%emt 0:0:10]} bxc6 {[%emt 0:0:2]} 16. d4 {[%emt 0:0:10]
} exd4 {[%emt 0:2:57]} 17. Nxd4 {[%emt 0:0:5]} Qd7 {[%emt 0:0:0]} 18. a5 {[%emt 0:0:54]} Nd5 {[%emt 0:0:33]} 19. Qa4 {[%emt 0:0:57]} Bxd4 {[%emt 0:2:28]} 20. Qxd4 {[%emt 0:0:10]} Qf7 {[%emt 0:0:4]} 21. b4 {[%emt 0:2:11]
} Kg8 {[%emt 0:0:21]} 22. Bd2 {[%emt 0:0:19]} Nf6 {[%emt 0:0:0]} 23. f3 {[%emt 0:0:37]} Nd7 {[%emt 0:0:9]} 24. Bg5 {[%emt 0:0:50]} Rfe8 {[%emt 0:2:46]} 25. Bf4 {[%emt 0:1:37]} Nf8 {[%emt 0:1:26]} 26. Be3 {[%emt 0:0:23]
} Nd7 {[%emt 0:0:17]} 27. Nh1 {[%emt 0:0:54]} Ne5 {[%emt 0:0:0]} 28. Nf2 {[%emt 0:0:2]} Qc4 {[%emt 0:1:16]} 29. Qd2 {[%emt 0:1:31]} Qd5 {[%emt 0:0:37]} 30. Bd4 {[%emt 0:1:1]} Nc4 {[%emt 0:0:21]} 31. Qf4 {[%emt 0:0:37]
} Qf7 {[%emt 0:0:13]} 32. Qg3 {[%emt 0:0:42]} Nd2 {[%emt 0:0:0]} 33. Rad1 {[%emt 0:0:34]} Nb3 {[%emt 0:0:8]} 34. Ng4 {[%emt 0:0:28]} Nxd4 {[%emt 0:0:14]} 35. Rxd4 {[%emt 0:0:31]} Qb3 {[%emt 0:0:27]} 36. f4 {[%emt 0:0:7]
} Rxe1+ {[%emt 0:0:16]} 37. Qxe1 {[%emt 0:0:0]} Re8 {[%emt 0:0:0]} 38. Qd2 {[%emt 0:0:57]} Qb1+ {[%emt 0:0:36]} 39. Kf2 {[%emt 0:0:14]} Qf5 {[%emt 0:0:34]} 40. Ne3 {[%emt 0:0:8]} Qf6 {[%emt 0:0:4]} 41. f5 {[%emt 0:0:26]
} Bf7 {[%emt 0:0:21]} 42. c4 {[%emt 0:0:26]} h5 {[%emt 0:0:27]
} 43. c5 {[%emt 0:0:6]} d5 {[%emt 0:0:3]} 44. Qd3 {[%emt 0:0:13]} Qe5 {[%emt 0:0:9]
} 45. g3 {[%emt 0:0:15]} Qf6 {[%emt 0:0:9]} 46. Rf4 {[%emt 0:0:0]} Qb2+ {[%emt 0:0:5]} 47. Qe2 {[%emt 0:0:3]} Qc3 {[%emt 0:0:13]} 48. Qf3 {[%emt 0:0:20]} d4 {[%emt 0:0:16]} 49. Nf1 {[%emt 0:0:4]} Qc2+ {[%emt 0:0:25]
} 50. Kg1 {[%emt 0:0:3]} Bd5 {[%emt 0:0:3]} 51. f6 {[%emt 0:0:0]} Bxf3 {[%emt 0:0:4]} 52. f7+ {[%emt 0:0:6]} Kf8 {[%emt 0:0:2]} 53. fxe8=Q+ {[%emt 0:0:6]} Kxe8 {[%emt 0:0:1]} 54. Rxf3 {[%emt 0:0:1]} Qb2 {[%emt 0:0:6]
} 55. Rd3 {[%emt 0:0:26]} Qxb4 {[%emt 0:0:4]} 56. Nd2 {[%emt 0:0:7]
} Qxc5 {[%emt 0:0:8]} 57. Nf3 {[%emt 0:0:4]} Qc1+ {[%emt 0:0:0]} 58. Kf2 {[%emt 0:0:3]} c5 {[%emt 0:0:3]} 0-1

[Event "FIDE World Rapid-ch Open 2018"]
[White "Khusnutdinov, Rustam"]
[Black "Shirov, Alexei"]
[Site "St. Petersburg"]
[Round "9.29"]
[Annotator "ChessBase"]
[Result "1/2-1/2"]
[Date "2018.12.27"]
[WhiteElo "2470"]
[BlackElo "2643"]
[PlyCount "96"]
[TimeControl "900+10"]

1. e4 {[%emt 0:0:0]} e5 {[%emt 0:0:0]} 2. Nf3 {[%emt 0:0:0]} Nc6 {[%emt 0:0:0]
} 3. Bb5 {[%emt 0:0:0]} a6 {[%emt 0:0:0]} 4. Ba4 {[%emt 0:0:0]} Nf6 {[%emt 0:0:0]} 5. 0-0 {[%emt 0:0:5]} b5 {[%emt 0:0:0]} 6. Bb3 {[%emt 0:0:1]
} Bc5 {[%emt 0:0:0]} 7. c3 {[%emt 0:0:16]} d6 {[%emt 0:0:0]} 8. a4 {[%emt 0:0:3]} Rb8 {[%emt 0:0:0]} 9. d4 {[%emt 0:0:27]} Bb6 {[%emt 0:0:1]
} 10. a5 {[%emt 0:0:12]} Ba7 {[%emt 0:0:2]} 11. Be3 {[%emt 0:0:0]} Bg4 {[%emt 0:0:19]} 12. Nbd2 {[%emt 0:0:35]} 0-0 {[%emt 0:3:52]} 13. Qe1 {[%emt 0:1:28]} h6 {[%emt 0:3:33]} 14. dxe5 {[%emt 0:2:46]} Bxe3 {[%emt 0:0:2]
} 15. Qxe3 {[%emt 0:0:2]} Nxe5 {[%emt 0:1:53]} 16. Nxe5 {[%emt 0:0:57]
} dxe5 {[%emt 0:0:1]} 17. f3 {[%emt 0:0:1]} Bd7 {[%emt 0:0:0]} 18. Qc5 {[%emt 0:0:24]} Re8 {[%emt 0:1:44]} 19. Rfd1 {[%emt 0:0:1]} Qc8 {[%emt 0:0:1]} 20. Ba2 {[%emt 0:1:59]} Be6 {[%emt 0:2:32]} 21. Bxe6 {[%emt 0:0:45]
} Rxe6 {[%emt 0:0:7]} 22. Nb3 {[%emt 0:2:8]} Nd7 {[%emt 0:0:0]} 23. Qf2 {[%emt 0:0:2]} Rd6 {[%emt 0:0:2]} 24. Rd2 {[%emt 0:2:33]} Rxd2 {[%emt 0:1:14]} 25. Qxd2 {[%emt 0:0:1]} c5 {[%emt 0:0:2]} 26. Rd1 {[%emt 0:0:1]
} Rb7 {[%emt 0:0:0]} 27. Qd6 {[%emt 0:0:8]} c4 {[%emt 0:0:0]} 28. Nc1 {[%emt 0:0:2]} Qc5+ {[%emt 0:0:38]} 29. Qxc5 {[%emt 0:0:17]} Nxc5 {[%emt 0:0:2]} 30. Rd5 {[%emt 0:0:0]} Na4 {[%emt 0:0:6]} 31. Rxe5 {[%emt 0:2:41]
} Nxb2 {[%emt 0:0:8]} 32. Rd5 {[%emt 0:0:13]} b4 {[%emt 0:0:0]} 33. cxb4 {[%emt 0:0:5]} Rxb4 {[%emt 0:0:1]} 34. Kf2 {[%emt 0:0:16]} c3 {[%emt 0:1:25]} 35. Ke3 {[%emt 0:0:26]} Ra4 {[%emt 0:0:12]} 36. Rc5 {[%emt 0:0:13]
} Rxa5 {[%emt 0:0:19]} 37. Rxa5 {[%emt 0:0:48]} Nc4+ {[%emt 0:0:0]} 38. Kd4 {[%emt 0:0:0]} Nxa5 {[%emt 0:0:1]} 39. Kxc3 {[%emt 0:0:1]
} Kf8 {[%emt 0:0:2]} 40. Nd3 {[%emt 0:0:15]} Nb7 {[%emt 0:0:35]} 41. Kc4 {[%emt 0:0:47]
} Ke7 {[%emt 0:0:7]} 42. Kd5 {[%emt 0:0:1]} a5 {[%emt 0:0:0]} 43. Nc5 {[%emt 0:0:25]} Nd6 {[%emt 0:0:20]} 44. Na4 {[%emt 0:0:23]} Nb5 {[%emt 0:0:6]} 45. Kc4 {[%emt 0:0:19]} Na3+ {[%emt 0:0:5]} 46. Kb3 {[%emt 0:0:4]
} Nb5 47. Kc4 Na3+ {[%emt 0:0:7]} 48. Kb3 {[%emt 0:0:2]} Nb5 1/2-1/2

[Event "FIDE World Rapid-ch Open 2018"]
[White "Fedoseev, Vladimir"]
[Black "Frolyanov, Dmitry"]
[Site "St. Petersburg"]
[Round "9.30"]
[Annotator "RC"]
[Result "1-0"]
[Date "2018.12.27"]
[WhiteElo "2719"]
[BlackElo "2517"]
[PlyCount "87"]
[TimeControl "900+10"]

1. d4 {[%emt 0:3:53]} d5 {[%emt 0:0:0]} 2. Nf3 {[%emt 0:0:2]} Nf6 {[%emt 0:0:0]
} 3. Bg5 {[%emt 0:0:4]} e6 {[%emt 0:0:2]} 4. Nbd2 {[%emt 0:0:0]} c5 {[%emt 0:0:22]} 5. c3 {[%emt 0:0:8]} Nc6 {[%emt 0:0:12]} 6. e3 {[%emt 0:0:7]
} Be7 {[%emt 0:0:35]} 7. Bd3 {[%emt 0:0:18]} b6 {[%emt 0:0:11]
} 8. Ne5 {[%emt 0:0:5]} Nxe5 {[%emt 0:0:18]} 9. dxe5 {[%emt 0:0:1]} Nd7 {[%emt 0:0:4]
} 10. Bxe7 {[%emt 0:0:2]} Qxe7 {[%emt 0:0:2]} 11. f4 {[%emt 0:0:1]
} Bb7 {[%emt 0:0:35]} 12. 0-0 {[%emt 0:0:4]} 0-0-0 {[%emt 0:0:0]} 13. Qe2 {[%emt 0:1:54]} f6 {[%emt 0:1:52]} 14. exf6 {[%emt 0:0:5]} Nxf6 {[%emt 0:0:4]} 15. Nf3 {[%emt 0:0:37]} Nd7 {[%emt 0:0:53]} 16. Bb5 {[%emt 0:0:19]
} Kb8 {[%emt 0:0:34]} 17. a4 {[%emt 0:0:2]} a5 {[%emt 0:1:24]
} 18. b4 {[%emt 0:0:48]} cxb4 {[%emt 0:0:11]} 19. cxb4 {[%emt 0:0:2]} Qxb4 {[%emt 0:0:15]} 20. Rab1 {[%emt 0:0:2]} Qd6 {[%emt 0:0:10]} 21. Ng5 {[%emt 0:0:37]
} Rhf8 {[%emt 0:1:50]} 22. Nxh7 {[%emt 0:0:18]} Rf7 {[%emt 0:0:0]} 23. Ng5 {[%emt 0:0:3]} Re7 {[%emt 0:0:5]} 24. Rbd1 {[%emt 0:1:33]} Nc5 {[%emt 0:0:20]} 25. Nf3 {[%emt 0:1:29]} Rc7 {[%emt 0:1:0]} 26. Nd4 {[%emt 0:1:0]
} e5 {[%emt 0:0:58]} 27. fxe5 {[%emt 0:0:15]} Qxe5 {[%emt 0:0:0]} 28. Rf5 {[%emt 0:0:2]} Qd6 {[%emt 0:0:32]} 29. Rdf1 {[%emt 0:0:23]} Rh8 {[%emt 0:0:9]} 30. Rh5 {[%emt 0:0:21]} Rxh5 {[%emt 0:0:6]} 31. Qxh5 {[%emt 0:0:2]
} Ne4 {[%emt 0:0:19]} 32. Qh8+ {[%emt 0:0:16]} Rc8 {[%emt 0:0:0]} 33. Qxg7 {[%emt 0:0:5]} Nd2 {[%emt 0:0:54]} 34. Rd1 {[%emt 0:0:20]} Nc4 {[%emt 0:0:10]} 35. Qg5 {[%emt 0:1:20]} Ka8 {[%emt 0:1:18]} 36. h4 {[%emt 0:0:19]
} Qa3 {[%emt 0:0:11]} 37. Nf5 {[%emt 0:0:41]} Qb3 {[%emt 0:0:0]} 38. Rd4 {[%emt 0:0:14]} Rf8 {[%emt 0:0:42]} 39. Kh2 {[%emt 0:0:14]} Qb1 {[%emt 0:0:14]} 40. Rf4 {[%emt 0:1:38]} Qe1 {[%emt 0:0:55]} 41. Qg3 {[%emt 0:0:43]
} Qc3 {[%emt 0:0:13]} 42. Bxc4 {[%emt 0:0:3]} dxc4 {[%emt 0:0:0]} 43. Nd6 {[%emt 0:0:1]} Rxf4 {[%emt 0:0:40]} 44. Qg8+ {[%emt 0:0:5]
} 1-0